Workbook

Sheet analiza struktury
A1: DATA | B1: ZYSK | D1: LISTA UTWORZONYCH FUNKCJI | L1: (x-xśr)^3
A2: 2020-02-01 | B2: 134 | D2: NAZWA MIARY | H2: KOMENDA FUNKCJI | L2: =(B2-$E$24)^3 -> -64
A3: 2020-02-02 | B3: 123 | D3: średnia | H3: SREDNIA | L3: -3375
A4: 2020-02-03 | B4: 131 | D4: wariancja | H4: WAR | L4: -343
A5: 2020-02-04 | B5: 156 | D5: odchylenie standardowe | H5: ODC | L5: 5832
A6: 2020-02-05 | B6: 128 | D6: współczynnik zmienności | H6: WSPZMIEN | L6: -1000
A7: 2020-02-06 | B7: 144 | D7: trzeci moment centralny zestandaryzowany | H7: TRZECIMOM | L7: 216
A8: 2020-02-07 | B8: 179 | D8: współczynnik asymetrii | H8: WSPASYMETRII | L8: 68921
A9: 2020-02-08 | B9: 125 | D9: rozstęp | H9: ROZSTEP | L9: -2197
A10: 2020-02-09 | B10: 111 | L10: -19683
A11: 2020-02-10 | B11: 149 | L11: 1331
A13: n | B13: 10
A24: średnia | E24: =AVERAGE(B2:B11) -> 138 | G24: trzeci moment centralny zestandaryzowany | K24: =SUM(L2:L11)/B13 -> 4963.8
A25: średnia | G25: trzeci moment centralny zestandaryzowany
A27: wariancja | E27: =_xlfn.VAR.P(B2:B11) -> 345 | G27: współczynnik asymetrii | K27: =K24/(E30)^3 -> 0.7746145175
A28: wariancja | G28: współczynnik asymetrii
A30: odchylenie standardowe | E30: =_xlfn.STDEV.P(B2:B11) -> 18.57417562 | G30: rozstęp | K30: =MAX(B2:B11)-MIN(B2:B11) -> 68
A31: odchylenie standardowe | G31: rozstęp
A33: współczynnik zmienności | E33: =(E30/E24)*100 -> 13.45954755
A34: współczynnik zmienności

Sheet analiza dynamiki
A1: MODEL | B1: ROK 2017 | D1: ROK 2018 | G1: LISTA UTWORZONYCH FUNKCJI
B2: q0 | C2: p0 | D2: qt | E2: pt | G2: NAZWA MIARY | K2: KOMENDA FUNKCJI
A3: A350 | B3: 240 | C3: 300 | D3: 190 | E3: 250 | G3: indeks wartości | K3: Iw
A4: A400 | B4: 160 | C4: 450 | D4: 230 | E4: 350 | G4: indeks cen Laspayresa | K4: IpL
A5: A500 | B5: 70 | C5: 600 | D5: 90 | E5: 550 | G5: indesk ilości Laspayresa | K5: IqL
G6: indeks cen Paaschego | K6: IpP
G7: indeks ilości Paaschego | K7: IqP
G8: indeks cen Fishera | K8: IpF
G9: indeks ilości Fishera | K9: IqF
A11: indeks wartości | D11: indeks cen Laspayresa | G11: indeks ilości Laspayresa | J11: indeks cen Paaschego | M11: indeks ilości Paaschego
A12: qtpt | B12: p0q0 | D12: q0pt | E12: q0p0 | G12: qtp0 | H12: q0p0 | J12: qtpt | K12: qtp0 | M12: qtpt | N12: q0pt
A13: =D3*E3 -> 47500 | B13: =B3*C3 -> 72000 | D13: =B3*E3 -> 60000 | E13: =B3*C3 -> 72000 | G13: =D3*C3 -> 57000 | H13: =B3*C3 -> 72000 | J13: =D3*E3 -> 47500 | K13: =D3*C3 -> 57000 | M13: =D3*E3 -> 47500 | N13: =B3*E3 -> 60000
A14: =D4*E4 -> 80500 | B14: =B4*C4 -> 72000 | D14: =B4*E4 -> 56000 | E14: =B4*C4 -> 72000 | G14: =D4*C4 -> 103500 | H14: =B4*C4 -> 72000 | J14: =D4*E4 -> 80500 | K14: =D4*C4 -> 103500 | M14: =D4*E4 -> 80500 | N14: =B4*E4 -> 56000
A15: =D5*E5 -> 49500 | B15: =B5*C5 -> 42000 | D15: =B5*E5 -> 38500 | E15: =B5*C5 -> 42000 | G15: =D5*C5 -> 54000 | H15: =B5*C5 -> 42000 | J15: =D5*E5 -> 49500 | K15: =D5*C5 -> 54000 | M15: =D5*E5 -> 49500 | N15: =B5*E5 -> 38500
A17: =SUM(A13:A15) -> 177500 | B17: =SUM(B13:B15) -> 186000 | D17: =SUM(D13:D15) -> 154500 | E17: =SUM(E13:E15) -> 186000 | G17: =SUM(G13:G15) -> 214500 | H17: =SUM(H13:H15) -> 186000 | J17: =SUM(J13:J15) -> 177500 | K17: =SUM(K13:K15) -> 214500 | M17: =SUM(M13:M15) -> 177500 | N17: =SUM(N13:N15) -> 154500
A18: Iw | B18: =A17/B17 -> 0.9543010753 | D18: IpL | E18: =D17/E17 -> 0.8306451613 | G18: IqL | H18: =G17/H17 -> 1.153225806 | J18: IpP | K18: =J17/K17 -> 0.8275058275 | M18: IqP | N18: =M17/N17 -> 1.148867314
A19: Iw | D19: IpL | G19: IqL | J19: IpP | M19: IqP
A22: indeks ilości Fishera | D22: indeks ilości Fishera
A23: IqF | B23: =SQRT(H18*N18) -> 1.151044497 | D23: IpF | E23: =SQRT(E18*K18) -> 0.8290740085
A24: IqF | D24: IpF
